[Event "Titled Tuesday Blitz May 03 Late 2022"]
[White "Richter, Nils"]
[Black "Remolar Gallen, Jose"]
[WhiteFideId "12990809"]
[BlackFideId "2215187"]
[WhiteElo "2243"]
[BlackElo "2205"]
[Result "1-0"]
[Round "09"]
[TimeControl "180+1"]
[Date "2022.05.03"]
[WhiteClock "0:00:59"]
[BlackClock "0:00:02"]

1. e4 {[%clk 0:03:00]}  c5 {[%clk 0:02:59]} 2. Nf3 {[%clk 0:03:01]}  d6 {[%clk 0:03:00]} 3. d4 {[%clk 0:03:02]}  cxd4 {[%clk 0:03:00]} 4. Nxd4 {[%clk 0:03:03]}  Nf6 {[%clk 0:03:00]} 5. Nc3 {[%clk 0:03:03]}  a6 {[%clk 0:03:00]} 6. g3 {[%clk 0:03:04]}  e5 {[%clk 0:03:01]} 7. Nde2 {[%clk 0:03:04]}  Be7 {[%clk 0:03:00]} 8. Bg2 {[%clk 0:03:04]}  O-O {[%clk 0:03:00]} 9. a4 {[%clk 0:03:04]}  Be6 {[%clk 0:02:41]} 10. O-O {[%clk 0:03:04]}  Nc6 {[%clk 0:02:28]} 11. Be3 {[%clk 0:02:57]}  Rc8 {[%clk 0:02:12]} 12. Nd5 {[%clk 0:02:53]}  Bxd5 {[%clk 0:02:09]} 13. exd5 {[%clk 0:02:54]}  Nb4 {[%clk 0:02:10]} 14. c3 {[%clk 0:02:50]}  Qa5 {[%clk 0:01:33]} 15. cxb4 {[%clk 0:02:45]}  Qxb4 {[%clk 0:01:34]} 16. Nc3 {[%clk 0:02:42]}  Qxb2 {[%clk 0:01:29]} 17. Ne4 {[%clk 0:02:31]}  Nxe4 {[%clk 0:01:28]} 18. Bxe4 {[%clk 0:02:32]}  f5 {[%clk 0:01:29]} 19. Bg2 {[%clk 0:02:31]}  Bf6 {[%clk 0:00:51]} 20. Rb1 {[%clk 0:02:30]}  Qa3 {[%clk 0:00:50]} 21. Qb3 {[%clk 0:02:24]}  Qxb3 {[%clk 0:00:42]} 22. Rxb3 {[%clk 0:02:25]}  Rc4 {[%clk 0:00:42]} 23. a5 {[%clk 0:02:21]}  f4 {[%clk 0:00:41]} 24. Bb6 {[%clk 0:02:17]}  g5 {[%clk 0:00:30]} 25. Bh3 {[%clk 0:02:10]}  h5 {[%clk 0:00:25]} 26. Be6+ {[%clk 0:02:09]}  Kg7 {[%clk 0:00:25]} 27. Rbb1 {[%clk 0:02:07]}  e4 {[%clk 0:00:16]} 28. Rbc1 {[%clk 0:02:04]}  Bc3 {[%clk 0:00:17]} 29. Rc2 {[%clk 0:01:52]}  e3 {[%clk 0:00:17]} 30. Rfc1 {[%clk 0:01:47]}  fxg3 {[%clk 0:00:11]} 31. hxg3 {[%clk 0:01:41]}  Bd2 {[%clk 0:00:04]} 32. Rxc4 {[%clk 0:01:36]}  e2 {[%clk 0:00:04]} 33. Rc7+ {[%clk 0:01:32]}  Kg6 {[%clk 0:00:03]} 34. Rb1 {[%clk 0:01:24]}  Rf3 {[%clk 0:00:02]} 35. Rc2 {[%clk 0:01:18]}  Rb3 {[%clk 0:00:02]} 36. Re1 {[%clk 0:01:04]}  Bxe1 {[%clk 0:00:02]} 37. Rxe2 {[%clk 0:01:04]}  Bc3 {[%clk 0:00:02]} 38. Bc8 {[%clk 0:00:59]} 1-0


[Site "https://www.chess.com"]

[Event "Titled Tuesday Blitz May 03 Late 2022"]
[White "Romero Ruscalleda, Josep"]
[Black "Prohorov, Olexandr"]
[WhiteFideId "2231859"]
[BlackFideId "14105578"]
[WhiteElo "2282"]
[BlackElo "1993"]
[Result "0-1"]
[Round "09"]
[TimeControl "180+1"]
[Date "2022.05.03"]
[WhiteClock "0:00:01"]
[BlackClock "0:00:02"]

1. e4 {[%clk 0:02:59]}  c5 {[%clk 0:02:59]} 2. c3 {[%clk 0:02:58]}  Nf6 {[%clk 0:02:57]} 3. e5 {[%clk 0:02:58]}  Nd5 {[%clk 0:02:58]} 4. Nf3 {[%clk 0:02:59]}  Nc6 {[%clk 0:02:57]} 5. Bc4 {[%clk 0:02:58]}  Nb6 {[%clk 0:02:57]} 6. Bb3 {[%clk 0:02:58]}  d5 {[%clk 0:02:57]} 7. exd6 {[%clk 0:02:57]}  Qxd6 {[%clk 0:02:57]} 8. O-O {[%clk 0:02:57]}  c4 {[%clk 0:02:47]} 9. Bc2 {[%clk 0:02:55]}  Bg4 {[%clk 0:02:25]} 10. Qe2 {[%clk 0:02:50]}  e6 {[%clk 0:02:16]} 11. b3 {[%clk 0:02:45]}  cxb3 {[%clk 0:02:12]} 12. axb3 {[%clk 0:02:45]}  Be7 {[%clk 0:02:07]} 13. d4 {[%clk 0:02:43]}  O-O {[%clk 0:02:06]} 14. Nbd2 {[%clk 0:02:38]}  Qc7 {[%clk 0:02:02]} 15. Ne4 {[%clk 0:02:33]}  Bxf3 {[%clk 0:01:55]} 16. Qxf3 {[%clk 0:02:31]}  Nxd4 {[%clk 0:01:51]} 17. cxd4 {[%clk 0:02:21]}  Qxc2 {[%clk 0:01:52]} 18. Bf4 {[%clk 0:02:16]}  Nd5 {[%clk 0:01:50]} 19. Rfc1 {[%clk 0:01:57]}  Qb2 {[%clk 0:01:50]} 20. Be5 {[%clk 0:01:34]}  Rac8 {[%clk 0:01:44]} 21. Rcb1 {[%clk 0:01:26]}  Qc2 {[%clk 0:01:44]} 22. Qg4 {[%clk 0:01:10]}  g6 {[%clk 0:01:36]} 23. Nd6 {[%clk 0:01:03]}  Bxd6 {[%clk 0:01:28]} 24. Bxd6 {[%clk 0:01:03]}  Rfd8 {[%clk 0:01:28]} 25. Be5 {[%clk 0:01:00]}  a6 {[%clk 0:01:17]} 26. h4 {[%clk 0:01:00]}  h5 {[%clk 0:01:12]} 27. Qh3 {[%clk 0:00:48]}  Rc3 {[%clk 0:01:03]} 28. f3 {[%clk 0:00:27]}  Rxb3 {[%clk 0:01:03]} 29. Rxb3 {[%clk 0:00:26]}  Qxb3 {[%clk 0:01:03]} 30. Qg3 {[%clk 0:00:26]}  Qe3+ {[%clk 0:01:00]} 31. Kh1 {[%clk 0:00:25]}  Rc8 {[%clk 0:00:58]} 32. Re1 {[%clk 0:00:21]}  Rc1 {[%clk 0:00:55]} 33. Rxc1 {[%clk 0:00:22]}  Qxc1+ {[%clk 0:00:54]} 34. Kh2 {[%clk 0:00:23]}  a5 {[%clk 0:00:50]} 35. Qf2 {[%clk 0:00:23]}  a4 {[%clk 0:00:44]} 36. Qa2 {[%clk 0:00:23]}  Qc6 {[%clk 0:00:36]} 37. Qa3 {[%clk 0:00:22]}  b5 {[%clk 0:00:33]} 38. Qd3 {[%clk 0:00:18]}  a3 {[%clk 0:00:31]} 39. Qxa3 {[%clk 0:00:17]}  b4 {[%clk 0:00:28]} 40. Qb2 {[%clk 0:00:16]}  f6 {[%clk 0:00:22]} 41. Bg3 {[%clk 0:00:11]}  Kg7 {[%clk 0:00:21]} 42. Qa2 {[%clk 0:00:09]}  Qb7 {[%clk 0:00:18]} 43. Qb3 {[%clk 0:00:08]}  Qb5 {[%clk 0:00:15]} 44. Bd6 {[%clk 0:00:07]}  Qa6 {[%clk 0:00:11]} 45. Bc5 {[%clk 0:00:06]}  Qb5 {[%clk 0:00:03]} 46. Qb1 {[%clk 0:00:05]}  b3 {[%clk 0:00:03]} 47. Ba3 {[%clk 0:00:04]}  Nc3 {[%clk 0:00:02]} 48. Qe1 {[%clk 0:00:03]}  Qc4 {[%clk 0:00:02]} 49. Bb2 {[%clk 0:00:02]}  Na4 {[%clk 0:00:01]} 50. Ba1 {[%clk 0:00:01]}  b2 {[%clk 0:00:02]} 0-1


[Site "https://www.chess.com"]

[Event "Titled Tuesday Blitz May 03 Late 2022"]
[White "Rytenko, Vsevolod"]
[Black "Itkis, Boris"]
[WhiteFideId "14133040"]
[BlackFideId "1209167"]
[WhiteElo "2120"]
[BlackElo "2207"]
[Result "1-0"]
[Round "09"]
[TimeControl "180+1"]
[Date "2022.05.03"]
[WhiteClock "0:01:32"]
[BlackClock "0:00:04"]

1. e4 {[%clk 0:03:00]}  e5 {[%clk 0:02:53]} 2. Nf3 {[%clk 0:03:00]}  Nc6 {[%clk 0:02:53]} 3. Bb5 {[%clk 0:03:01]}  a6 {[%clk 0:02:53]} 4. Ba4 {[%clk 0:03:01]}  d6 {[%clk 0:02:54]} 5. O-O {[%clk 0:03:01]}  Bd7 {[%clk 0:02:54]} 6. Re1 {[%clk 0:03:01]}  Nge7 {[%clk 0:02:54]} 7. c3 {[%clk 0:03:01]}  Ng6 {[%clk 0:02:54]} 8. d4 {[%clk 0:03:02]}  Be7 {[%clk 0:02:54]} 9. d5 {[%clk 0:03:01]}  Nb8 {[%clk 0:02:54]} 10. Bxd7+ {[%clk 0:02:56]}  Qxd7 {[%clk 0:02:55]} 11. c4 {[%clk 0:02:57]}  O-O {[%clk 0:02:54]} 12. Nc3 {[%clk 0:02:58]}  a5 {[%clk 0:02:54]} 13. Qd3 {[%clk 0:02:52]}  Na6 {[%clk 0:02:54]} 14. Be3 {[%clk 0:02:52]}  f5 {[%clk 0:02:52]} 15. exf5 {[%clk 0:02:52]}  Rxf5 {[%clk 0:02:50]} 16. Nd2 {[%clk 0:02:50]}  Raf8 {[%clk 0:02:46]} 17. a3 {[%clk 0:02:48]}  Bg5 {[%clk 0:02:42]} 18. Nde4 {[%clk 0:02:46]}  Bxe3 {[%clk 0:02:41]} 19. fxe3 {[%clk 0:02:44]}  R5f7 {[%clk 0:02:23]} 20. Ng5 {[%clk 0:02:36]}  Nc5 {[%clk 0:02:16]} 21. Qe2 {[%clk 0:02:33]}  Rf5 {[%clk 0:02:13]} 22. Nce4 {[%clk 0:02:22]}  b6 {[%clk 0:01:22]} 23. Qh5 {[%clk 0:02:13]}  h6 {[%clk 0:00:47]} 24. Qxg6 {[%clk 0:02:13]}  hxg5 {[%clk 0:00:45]} 25. Nxg5 {[%clk 0:02:14]}  Rxg5 {[%clk 0:00:38]} 26. Qxg5 {[%clk 0:02:15]}  Nd3 {[%clk 0:00:33]} 27. Rf1 {[%clk 0:02:13]}  Nxb2 {[%clk 0:00:29]} 28. Rxf8+ {[%clk 0:02:12]}  Kxf8 {[%clk 0:00:30]} 29. Rf1+ {[%clk 0:02:12]}  Kg8 {[%clk 0:00:30]} 30. Qh4 {[%clk 0:02:03]}  Na4 {[%clk 0:00:14]} 31. g4 {[%clk 0:01:52]}  Nc5 {[%clk 0:00:12]} 32. g5 {[%clk 0:01:52]}  Qe8 {[%clk 0:00:09]} 33. Qg4 {[%clk 0:01:48]}  Qg6 {[%clk 0:00:07]} 34. h4 {[%clk 0:01:46]}  Qe4 {[%clk 0:00:04]} 35. Qxe4 {[%clk 0:01:35]}  Nxe4 {[%clk 0:00:04]} 36. g6 {[%clk 0:01:34]}  Nd2 {[%clk 0:00:04]} 37. Rf7 {[%clk 0:01:32]}  Nxc4 {[%clk 0:00:04]} 38. Rxc7 {[%clk 0:01:32]} 1-0


[Site "https://www.chess.com"]

[Event "Titled Tuesday Blitz May 03 Late 2022"]
[White "Sarana, Alexey"]
[Black "Herrera Reyes, Jose Antonio"]
[WhiteFideId "24133795"]
[BlackFideId "2274914"]
[WhiteElo "2666"]
[BlackElo "2361"]
[Result "0-1"]
[Round "09"]
[TimeControl "180+1"]
[Date "2022.05.03"]
[WhiteClock "0:01:28"]
[BlackClock "0:00:05"]

1. d4 {[%clk 0:03:00]}  Nf6 {[%clk 0:02:59]} 2. c4 {[%clk 0:02:59]}  c5 {[%clk 0:02:59]} 3. d5 {[%clk 0:03:00]}  b5 {[%clk 0:02:59]} 4. cxb5 {[%clk 0:03:00]}  a6 {[%clk 0:03:00]} 5. bxa6 {[%clk 0:03:01]}  e6 {[%clk 0:02:59]} 6. Nc3 {[%clk 0:03:02]}  exd5 {[%clk 0:02:59]} 7. Nxd5 {[%clk 0:03:03]}  Be7 {[%clk 0:03:00]} 8. Nxe7 {[%clk 0:03:02]}  Qxe7 {[%clk 0:03:00]} 9. Bf4 {[%clk 0:03:02]}  O-O {[%clk 0:03:00]} 10. Bd6 {[%clk 0:02:56]}  Qe8 {[%clk 0:02:49]} 11. Bxf8 {[%clk 0:02:56]}  Qxf8 {[%clk 0:02:50]} 12. e3 {[%clk 0:02:57]}  d5 {[%clk 0:02:43]} 13. Nf3 {[%clk 0:02:57]}  Nc6 {[%clk 0:02:43]} 14. Bb5 {[%clk 0:02:56]}  Ne7 {[%clk 0:02:33]} 15. O-O {[%clk 0:02:56]}  Bxa6 {[%clk 0:02:32]} 16. a4 {[%clk 0:02:56]}  Qb8 {[%clk 0:02:28]} 17. Qe2 {[%clk 0:02:54]}  Bb7 {[%clk 0:02:27]} 18. Rfd1 {[%clk 0:02:51]}  h6 {[%clk 0:02:24]} 19. Rac1 {[%clk 0:02:51]}  Qa7 {[%clk 0:02:21]} 20. b3 {[%clk 0:02:51]}  Rd8 {[%clk 0:02:18]} 21. Ne5 {[%clk 0:02:50]}  Qb8 {[%clk 0:02:17]} 22. Nd3 {[%clk 0:02:50]}  c4 {[%clk 0:02:09]} 23. bxc4 {[%clk 0:02:49]}  dxc4 {[%clk 0:02:10]} 24. Rxc4 {[%clk 0:02:50]}  Bd5 {[%clk 0:02:00]} 25. Rcc1 {[%clk 0:02:48]}  Bb3 {[%clk 0:01:59]} 26. Re1 {[%clk 0:02:48]}  Nf5 {[%clk 0:01:58]} 27. Nc5 {[%clk 0:02:47]}  Bd5 {[%clk 0:01:57]} 28. e4 {[%clk 0:02:47]}  Nd4 {[%clk 0:01:55]} 29. Qe3 {[%clk 0:02:47]}  Nxb5 {[%clk 0:01:50]} 30. axb5 {[%clk 0:02:46]}  Ba8 {[%clk 0:01:49]} 31. Rb1 {[%clk 0:02:45]}  Rc8 {[%clk 0:01:44]} 32. Rec1 {[%clk 0:02:45]}  Qe5 {[%clk 0:01:23]} 33. Nd3 {[%clk 0:02:42]}  Rxc1+ {[%clk 0:01:21]} 34. Rxc1 {[%clk 0:02:42]}  Qb8 {[%clk 0:01:02]} 35. b6 {[%clk 0:02:40]}  Bxe4 {[%clk 0:01:01]} 36. Nc5 {[%clk 0:02:36]}  Bc6 {[%clk 0:00:59]} 37. b7 {[%clk 0:02:34]}  Bxb7 {[%clk 0:00:46]} 38. Rb1 {[%clk 0:02:31]}  Ng4 {[%clk 0:00:46]} 39. Qg3 {[%clk 0:02:18]}  Qxg3 {[%clk 0:00:45]} 40. hxg3 {[%clk 0:02:19]}  Bd5 {[%clk 0:00:46]} 41. f3 {[%clk 0:02:18]}  Nf6 {[%clk 0:00:45]} 42. g4 {[%clk 0:02:17]}  g5 {[%clk 0:00:44]} 43. Rb6 {[%clk 0:02:17]}  Kg7 {[%clk 0:00:44]} 44. Nd3 {[%clk 0:02:17]}  Bc4 {[%clk 0:00:43]} 45. Ne5 {[%clk 0:02:18]}  Be6 {[%clk 0:00:43]} 46. Kf2 {[%clk 0:02:13]}  Nd5 {[%clk 0:00:43]} 47. Nd3 {[%clk 0:02:12]}  Nxb6 {[%clk 0:00:43]} 48. Nc5 {[%clk 0:02:12]}  Kf6 {[%clk 0:00:40]} 49. Ke3 {[%clk 0:02:12]}  Nd5+ {[%clk 0:00:39]} 50. Kf2 {[%clk 0:02:13]}  Nf4 {[%clk 0:00:39]} 51. Ne4+ {[%clk 0:02:13]}  Ke5 {[%clk 0:00:39]} 52. Nc5 {[%clk 0:02:13]}  Bc4 {[%clk 0:00:34]} 53. Nd7+ {[%clk 0:02:13]}  Ke6 {[%clk 0:00:33]} 54. Nc5+ {[%clk 0:02:13]}  Kd5 {[%clk 0:00:32]} 55. Ne4 {[%clk 0:02:13]}  Ke5 {[%clk 0:00:27]} 56. Ng3 {[%clk 0:02:12]}  Bd3 {[%clk 0:00:25]} 57. Nh1 {[%clk 0:02:13]}  Bg6 {[%clk 0:00:23]} 58. Ng3 {[%clk 0:02:13]}  Nd3+ {[%clk 0:00:24]} 59. Ke3 {[%clk 0:02:12]}  Nf4 {[%clk 0:00:21]} 60. Kf2 {[%clk 0:02:13]}  f5 {[%clk 0:00:21]} 61. gxf5 {[%clk 0:02:12]}  Bxf5 {[%clk 0:00:22]} 62. Nf1 {[%clk 0:02:13]}  Nd3+ {[%clk 0:00:20]} 63. Ke3 {[%clk 0:02:12]}  Ne1 {[%clk 0:00:20]} 64. Kf2 {[%clk 0:02:12]}  Nc2 {[%clk 0:00:20]} 65. Ng3 {[%clk 0:02:11]}  Nd4 {[%clk 0:00:18]} 66. Ke3 {[%clk 0:02:10]}  Ne6 {[%clk 0:00:18]} 67. Nf1 {[%clk 0:02:10]}  Nf4 {[%clk 0:00:18]} 68. Kf2 {[%clk 0:02:10]}  h5 {[%clk 0:00:19]} 69. Ne3 {[%clk 0:02:10]}  Be6 {[%clk 0:00:17]} 70. Nf1 {[%clk 0:02:09]}  h4 {[%clk 0:00:18]} 71. g3 {[%clk 0:02:02]}  Nd3+ {[%clk 0:00:15]} 72. Kg2 {[%clk 0:02:02]}  Ne1+ {[%clk 0:00:14]} 73. Kf2 {[%clk 0:02:02]}  Nxf3 {[%clk 0:00:13]} 74. Kxf3 {[%clk 0:02:00]}  g4+ {[%clk 0:00:12]} 75. Kf2 {[%clk 0:02:00]}  h3 {[%clk 0:00:12]} 76. Ne3 {[%clk 0:01:56]}  Ke4 {[%clk 0:00:11]} 77. Nf1 {[%clk 0:01:56]}  Kf5 {[%clk 0:00:10]} 78. Nh2 {[%clk 0:01:55]}  Bd5 {[%clk 0:00:10]} 79. Ke3 {[%clk 0:01:55]}  Bg2 {[%clk 0:00:10]} 80. Kd3 {[%clk 0:01:55]}  Ke5 {[%clk 0:00:10]} 81. Nxg4+ {[%clk 0:01:54]}  Kf5 {[%clk 0:00:09]} 82. Nh2 {[%clk 0:01:55]}  Kg5 {[%clk 0:00:09]} 83. Ke3 {[%clk 0:01:56]}  Kf5 {[%clk 0:00:09]} 84. Kf2 {[%clk 0:01:57]}  Kg5 {[%clk 0:00:09]} 85. Ke2 {[%clk 0:01:57]}  Kf5 {[%clk 0:00:09]} 86. Ke3 {[%clk 0:01:58]}  Kg5 {[%clk 0:00:09]} 87. Kd3 {[%clk 0:01:58]}  Kf5 {[%clk 0:00:09]} 88. Kd4 {[%clk 0:01:59]}  Kg5 {[%clk 0:00:09]} 89. Ke5 {[%clk 0:01:59]}  Kg6 {[%clk 0:00:09]} 90. Kf4 {[%clk 0:02:00]}  Kf6 {[%clk 0:00:09]} 91. Kg4 {[%clk 0:02:00]}  Kg6 {[%clk 0:00:09]} 92. Kh4 {[%clk 0:02:00]}  Kf5 {[%clk 0:00:09]} 93. g4+ {[%clk 0:01:58]}  Kf4 {[%clk 0:00:09]} 94. g5 {[%clk 0:01:58]}  Kf5 {[%clk 0:00:07]} 95. Kh5 {[%clk 0:01:58]}  Kf4 {[%clk 0:00:06]} 96. g6 {[%clk 0:01:52]}  Kg3 {[%clk 0:00:05]} 97. g7 {[%clk 0:01:51]}  Bd5 {[%clk 0:00:06]} 98. Ng4 {[%clk 0:01:51]}  Bg8 {[%clk 0:00:03]} 99. Kg5 {[%clk 0:01:44]}  Ba2 {[%clk 0:00:03]} 100. Kf5 {[%clk 0:01:42]}  Bb1+ {[%clk 0:00:02]} 101. Ke5 {[%clk 0:01:40]}  Ba2 {[%clk 0:00:03]} 102. Ne3 {[%clk 0:01:34]}  Kf3 {[%clk 0:00:02]} 103. Nf1 {[%clk 0:01:23]}  Kf2 {[%clk 0:00:02]} 104. Ne3 {[%clk 0:01:23]}  Kxe3 {[%clk 0:00:02]} 105. Kf5 {[%clk 0:01:22]}  Bg8 {[%clk 0:00:01]} 106. Kf6 {[%clk 0:01:22]}  h2 {[%clk 0:00:02]} 107. Ke7 {[%clk 0:01:23]}  h1=Q {[%clk 0:00:03]} 108. Kf8 {[%clk 0:01:23]}  Qd5 {[%clk 0:00:03]} 109. Ke7 {[%clk 0:01:24]}  Qf7+ {[%clk 0:00:04]} 110. Kd6 {[%clk 0:01:25]}  Qxg7 {[%clk 0:00:04]} 111. Kc5 {[%clk 0:01:26]}  Qf7 {[%clk 0:00:05]} 112. Kb4 {[%clk 0:01:27]}  Qc4+ {[%clk 0:00:05]} 113. Ka3 {[%clk 0:01:28]}  Qb3# {[%clk 0:00:05]} 0-1


[Site "https://www.chess.com"]

[Event "Titled Tuesday Blitz May 03 Late 2022"]
[White "Sernecki, Franciszek"]
[Black "Bernal Moro, Luis Javier"]
[WhiteFideId "1169297"]
[BlackFideId "2200236"]
[WhiteElo "2165"]
[BlackElo "2373"]
[Result "0-1"]
[Round "09"]
[TimeControl "180+1"]
[Date "2022.05.03"]
[WhiteClock "0:00:00"]
[BlackClock "0:00:11"]

1. d4 {[%clk 0:03:00]}  Nf6 {[%clk 0:02:59]} 2. c4 {[%clk 0:03:00]}  g6 {[%clk 0:02:59]} 3. Nc3 {[%clk 0:03:00]}  Bg7 {[%clk 0:02:59]} 4. e4 {[%clk 0:03:01]}  d6 {[%clk 0:03:00]} 5. Bg5 {[%clk 0:03:01]}  h6 {[%clk 0:02:56]} 6. Be3 {[%clk 0:03:00]}  Ng4 {[%clk 0:02:53]} 7. Bc1 {[%clk 0:03:00]}  e5 {[%clk 0:02:49]} 8. h3 {[%clk 0:02:34]}  exd4 {[%clk 0:02:44]} 9. Nd5 {[%clk 0:02:27]}  Ne5 {[%clk 0:02:41]} 10. Nf3 {[%clk 0:02:21]}  Nbc6 {[%clk 0:02:26]} 11. Be2 {[%clk 0:02:14]}  O-O {[%clk 0:02:15]} 12. O-O {[%clk 0:02:08]}  Re8 {[%clk 0:01:57]} 13. Re1 {[%clk 0:01:58]}  Nxf3+ {[%clk 0:01:45]} 14. Bxf3 {[%clk 0:01:57]}  Ne5 {[%clk 0:01:45]} 15. Be2 {[%clk 0:01:53]}  c6 {[%clk 0:01:45]} 16. Nf4 {[%clk 0:01:51]}  Nd7 {[%clk 0:01:37]} 17. Bg4 {[%clk 0:01:45]}  Nc5 {[%clk 0:01:35]} 18. Bxc8 {[%clk 0:01:41]}  Rxc8 {[%clk 0:01:35]} 19. f3 {[%clk 0:01:41]}  a5 {[%clk 0:01:33]} 20. Nd3 {[%clk 0:01:39]}  Nxd3 {[%clk 0:01:27]} 21. Qxd3 {[%clk 0:01:40]}  d5 {[%clk 0:01:27]} 22. Bd2 {[%clk 0:01:32]}  dxe4 {[%clk 0:01:18]} 23. Rxe4 {[%clk 0:01:30]}  Rxe4 {[%clk 0:01:17]} 24. Qxe4 {[%clk 0:01:29]}  d3 {[%clk 0:01:12]} 25. Rd1 {[%clk 0:01:09]}  Qd4+ {[%clk 0:00:33]} 26. Qxd4 {[%clk 0:01:05]}  Bxd4+ {[%clk 0:00:33]} 27. Kf1 {[%clk 0:01:05]}  Bxb2 {[%clk 0:00:33]} 28. Bxh6 {[%clk 0:01:04]}  Rd8 {[%clk 0:00:29]} 29. Kf2 {[%clk 0:01:00]}  Rd4 {[%clk 0:00:25]} 30. Be3 {[%clk 0:00:45]}  Rxc4 {[%clk 0:00:25]} 31. Rxd3 {[%clk 0:00:42]}  Rc2+ {[%clk 0:00:25]} 32. Kg3 {[%clk 0:00:37]}  a4 {[%clk 0:00:24]} 33. Rd8+ {[%clk 0:00:29]}  Kg7 {[%clk 0:00:23]} 34. Rd7 {[%clk 0:00:24]}  b5 {[%clk 0:00:22]} 35. h4 {[%clk 0:00:19]}  Bf6 {[%clk 0:00:21]} 36. Rd2 {[%clk 0:00:07]}  Rc4 {[%clk 0:00:16]} 37. f4 {[%clk 0:00:06]}  b4 {[%clk 0:00:15]} 38. Kg4 {[%clk 0:00:04]}  b3 {[%clk 0:00:15]} 39. axb3 {[%clk 0:00:03]}  axb3 {[%clk 0:00:16]} 40. g3 {[%clk 0:00:04]}  b2 {[%clk 0:00:16]} 41. Rd1 {[%clk 0:00:04]}  Rc2 {[%clk 0:00:13]} 42. h5 {[%clk 0:00:03]}  gxh5+ {[%clk 0:00:13]} 43. Kxh5 {[%clk 0:00:04]}  c5 {[%clk 0:00:13]} 44. Kg4 {[%clk 0:00:01]}  c4 {[%clk 0:00:13]} 45. Kf5 {[%clk 0:00:01]}  c3 {[%clk 0:00:14]} 46. g4 {[%clk 0:00:02]}  Re2 {[%clk 0:00:14]} 47. g5 {[%clk 0:00:02]}  Bxg5 {[%clk 0:00:14]} 48. Bd4+ {[%clk 0:00:01]}  Kg8 {[%clk 0:00:11]} 49. fxg5 {[%clk 0:00:00]}  Rd2 {[%clk 0:00:11]} 0-1


[Site "https://www.chess.com"]

[Event "Titled Tuesday Blitz May 03 Late 2022"]
[White "Shimanov, Aleksandr"]
[Black "Martinez Alcantara, Jose Eduardo"]
[WhiteFideId "4198603"]
[BlackFideId "3805662"]
[WhiteElo "2636"]
[BlackElo "2690"]
[Result "0-1"]
[Round "09"]
[TimeControl "180+1"]
[Date "2022.05.03"]
[WhiteClock "0:00:01"]
[BlackClock "0:00:12"]

1. d4 {[%clk 0:03:00]}  Nf6 {[%clk 0:02:59]} 2. Nf3 {[%clk 0:02:58]}  e6 {[%clk 0:03:00]} 3. Bf4 {[%clk 0:02:56]}  d5 {[%clk 0:02:59]} 4. e3 {[%clk 0:02:56]}  Bd6 {[%clk 0:03:00]} 5. Nbd2 {[%clk 0:02:55]}  c5 {[%clk 0:03:00]} 6. c3 {[%clk 0:02:50]}  cxd4 {[%clk 0:03:00]} 7. Bxd6 {[%clk 0:02:49]}  dxc3 {[%clk 0:03:00]} 8. Ba3 {[%clk 0:02:46]}  cxd2+ {[%clk 0:03:01]} 9. Nxd2 {[%clk 0:02:42]}  Nc6 {[%clk 0:03:02]} 10. Bb5 {[%clk 0:02:41]}  Bd7 {[%clk 0:03:02]} 11. Bxc6 {[%clk 0:02:38]}  Bxc6 {[%clk 0:03:03]} 12. O-O {[%clk 0:02:38]}  Ne4 {[%clk 0:03:04]} 13. Nxe4 {[%clk 0:02:29]}  dxe4 {[%clk 0:03:05]} 14. Qg4 {[%clk 0:02:29]}  Qf6 {[%clk 0:03:05]} 15. Rfd1 {[%clk 0:02:29]}  Qe5 {[%clk 0:02:25]} 16. Bd6 {[%clk 0:02:00]}  h5 {[%clk 0:02:23]} 17. Bxe5 {[%clk 0:01:26]}  hxg4 {[%clk 0:02:23]} 18. Bxg7 {[%clk 0:01:27]}  Rh5 {[%clk 0:02:23]} 19. Bf6 {[%clk 0:01:25]}  Rf5 {[%clk 0:02:21]} 20. Bc3 {[%clk 0:01:22]}  f6 {[%clk 0:02:17]} 21. Rd6 {[%clk 0:01:21]}  Kf7 {[%clk 0:02:11]} 22. Rad1 {[%clk 0:01:11]}  Rh8 {[%clk 0:01:51]} 23. Rd8 {[%clk 0:01:09]}  Rfh5 {[%clk 0:01:30]} 24. Rxh8 {[%clk 0:01:02]}  Rxh8 {[%clk 0:01:31]} 25. Rd6 {[%clk 0:00:57]}  Ke7 {[%clk 0:01:18]} 26. Bb4 {[%clk 0:00:54]}  Kf7 {[%clk 0:01:18]} 27. Bc3 {[%clk 0:00:53]}  a6 {[%clk 0:01:04]} 28. a3 {[%clk 0:00:52]}  Ke7 {[%clk 0:01:01]} 29. Bb4 {[%clk 0:00:52]}  Kf7 {[%clk 0:01:02]} 30. Bc3 {[%clk 0:00:53]}  e5 {[%clk 0:00:52]} 31. Bb4 {[%clk 0:00:46]}  Rc8 {[%clk 0:00:50]} 32. Bc3 {[%clk 0:00:43]}  Ke7 {[%clk 0:00:45]} 33. Bb4 {[%clk 0:00:42]}  Kf7 {[%clk 0:00:46]} 34. Bc3 {[%clk 0:00:42]}  Bb5 {[%clk 0:00:41]} 35. h4 {[%clk 0:00:34]}  gxh3 {[%clk 0:00:36]} 36. gxh3 {[%clk 0:00:34]}  Rg8+ {[%clk 0:00:33]} 37. Kh2 {[%clk 0:00:27]}  Bf1 {[%clk 0:00:30]} 38. Rd1 {[%clk 0:00:22]}  Be2 {[%clk 0:00:21]} 39. Rg1 {[%clk 0:00:22]}  Rh8 {[%clk 0:00:20]} 40. Rg3 {[%clk 0:00:22]}  Bf3 {[%clk 0:00:20]} 41. Rg1 {[%clk 0:00:21]}  Be2 {[%clk 0:00:20]} 42. Rg3 {[%clk 0:00:21]}  b6 {[%clk 0:00:19]} 43. Rg1 {[%clk 0:00:21]}  a5 {[%clk 0:00:20]} 44. Rg3 {[%clk 0:00:21]}  Rh7 {[%clk 0:00:20]} 45. Rg1 {[%clk 0:00:21]}  Rh6 {[%clk 0:00:20]} 46. Rg3 {[%clk 0:00:21]}  Ke6 {[%clk 0:00:21]} 47. Rg8 {[%clk 0:00:19]}  Bf1 {[%clk 0:00:20]} 48. Rg3 {[%clk 0:00:18]}  Kd5 {[%clk 0:00:20]} 49. Be1 {[%clk 0:00:06]}  Kc4 {[%clk 0:00:20]} 50. Bc3 {[%clk 0:00:06]}  Kb3 {[%clk 0:00:20]} 51. Kg1 {[%clk 0:00:03]}  Bxh3 {[%clk 0:00:20]} 52. Rg7 {[%clk 0:00:04]}  Kc4 {[%clk 0:00:15]} 53. Rg8 {[%clk 0:00:02]}  Kb5 {[%clk 0:00:15]} 54. Rg7 {[%clk 0:00:03]}  Be6 {[%clk 0:00:14]} 55. Kg2 {[%clk 0:00:03]}  Bc4 {[%clk 0:00:14]} 56. Kg3 {[%clk 0:00:03]}  Be2 {[%clk 0:00:14]} 57. Rg8 {[%clk 0:00:03]}  Kc6 {[%clk 0:00:11]} 58. Rg7 {[%clk 0:00:02]}  Bc4 {[%clk 0:00:11]} 59. Kg2 {[%clk 0:00:02]}  Bd5 {[%clk 0:00:11]} 60. Kg3 {[%clk 0:00:02]}  a4 {[%clk 0:00:12]} 61. Kg2 {[%clk 0:00:03]}  b5 {[%clk 0:00:13]} 62. Kg3 {[%clk 0:00:03]}  Bc4 {[%clk 0:00:13]} 63. Kg2 {[%clk 0:00:03]}  Kd5 {[%clk 0:00:14]} 64. Kg3 {[%clk 0:00:04]}  Ke6 {[%clk 0:00:15]} 65. Kg2 {[%clk 0:00:04]}  Kf5 {[%clk 0:00:15]} 66. Kg3 {[%clk 0:00:04]}  Bf1 {[%clk 0:00:16]} 67. Rg8 {[%clk 0:00:04]}  Rh1 {[%clk 0:00:16]} 68. Rc8 {[%clk 0:00:03]}  Rg1+ {[%clk 0:00:16]} 69. Kh4 {[%clk 0:00:04]}  Rg4+ {[%clk 0:00:17]} 70. Kh5 {[%clk 0:00:04]}  Rg6 {[%clk 0:00:14]} 71. Kh4 {[%clk 0:00:04]}  Be2 {[%clk 0:00:12]} 72. Kh3 {[%clk 0:00:03]}  Rg4 {[%clk 0:00:11]} 73. Rh8 {[%clk 0:00:03]}  Bf1+ {[%clk 0:00:11]} 74. Kh2 {[%clk 0:00:03]}  Ke6 {[%clk 0:00:12]} 75. Kh1 {[%clk 0:00:03]}  Be2 {[%clk 0:00:12]} 76. Kh2 {[%clk 0:00:02]}  Bf3 {[%clk 0:00:13]} 77. Kh3 {[%clk 0:00:02]}  Rg1 {[%clk 0:00:13]} 78. Rh4 {[%clk 0:00:02]}  Rg2 {[%clk 0:00:13]} 79. Bb4 {[%clk 0:00:01]}  Rxf2 {[%clk 0:00:12]} 0-1


[Site "https://www.chess.com"]